[Event "17th Paracin Open 2024"]
[Site "Paracin"]
[Date "2024.07.04"]
[Round "2.12"]
[White "Pranav K P"]
[Black "Akbas, Umut Ata"]
[Result "1/2-1/2"]
[ECO "E21"]
[WhiteElo "2223"]
[BlackElo "2437"]
[Annotator "TA"]
[PlyCount "152"]
[EventDate "2024.07.02"]
[EventType "swiss"]
[EventCountry "SRB"]
[SourceTitle "playchess.com"]
[Source "ChessBase"]
[SourceQuality "1"]
[TimeControl "5400+30"]

{[%evp 71,151,-14,-14,-27,-27,-78,-79,-79,-79,-120,-54,-66,-51,-52,-23,-39,0,0,0,0,0,0,0,0,0,0,0,0,0,0,0,0,0,0,0,0,0,0,0,0,0,0,0,0,0,0,0,0,0,0,0,0,0,0,0,0,0,0,0,0,0,0,0,0,0,0,0,0,0,0,0,0,0,0,0,0,0,0,0,0,0,0]} 1. d4 {[%emt 1:31:00]} Nf6 {[%emt 0:02:49]} 2. c4 {[%emt 0:00:00]} e6 {[%emt 0:00:08]} 3. Nc3 {[%emt 0:00:00]} Bb4 {[%emt 0:00:06]} 4. e3 {[%emt 0:00:00]} O-O {[%emt 0:00:07]} 5. Bd2 {[%emt 0:00:00]} b6 {[%emt 0:00:09]} 6. Nf3 {[%emt 0:00:00]} Bb7 {[%emt 0:00:06]} 7. Bd3 {[%emt 0:00:00]} d6 {[%emt 0:00:07]} 8. O-O {[%emt 0:00:00]} Nbd7 {[%emt 0:00:07]} 9. b3 {[%emt 0:00:00]} e5 {[%emt 0:04:03]} 10. Ne1 {[%emt 0:00:00]} exd4 {[%emt 0:22:24]} 11. exd4 {[%emt 0:00:00]} d5 {[%emt 0:00:10]} 12. Nc2 {[%emt 0:00:00]} dxc4 {[%emt 0:03:03]} 13. bxc4 {[%emt 0:00:00]} Ba5 {[%emt 0:03:58]} 14. Ne3 {[%emt 0:00:00]} Re8 {[%emt 0:02:48]} 15. Re1 {[%emt 0:00:00]} Nf8 {[%emt 0:07:24]} 16. Ne2 {[%emt 0:00:00]} Bxd2 {[%emt 0:01:44]} 17. Qxd2 {[%emt 0:00:00]} Ne4 {[%emt 0:04:02]} 18. Bxe4 {[%emt 0:00:00]} Rxe4 {[%emt 0:00:52]} 19. Rad1 {[%emt 0:00:00]} Qg5 {[%emt 0:02:06]} 20. Ng3 {[%emt 0:00:00]} Ree8 {[%emt 0:00:33]} 21. Qe2 {[%emt 0:00:00]} Ne6 {[%emt 0:08:25]} 22. Qg4 {[%emt 0:00:00]} Qxg4 {[%emt 0:02:26]} 23. Nxg4 {[%emt 0:00:00]} Ba6 {[%emt 0:08:13]} 24. Ne3 {[%emt 0:00:00]} Rad8 {[%emt 0:00:49]} 25. d5 {[%emt 0:00:00]} Nc5 {[%emt 0:00:33]} 26. Ngf5 {[%emt 0:00:00]} Na4 {[%emt 0:02:02]} 27. Nd4 {[%emt 0:00:00]} Nb2 {[%emt 0:02:13]} 28. Rb1 {[%emt 0:00:00]} Nxc4 {[%emt 0:00:47]} 29. Nc6 {[%emt 0:00:00]} Ra8 {[%emt 0:00:34]} 30. Rbc1 {[%emt 0:00:25]} Nxe3 {[%emt 0:12:30]} 31. Rxe3 {[%emt 0:01:28]} g6 {[%emt 0:08:24]} 32. Ne7+ {[%emt 0:01:21]} Kf8 {[%emt 0:00:10]} 33. Rxc7 {[%emt 0:00:09]} Bb5 {[%emt 0:02:29]} 34. h4 {[%emt 0:03:27]} Red8 {[%emt 0:00:20]} 35. h5 {[%emt 0:01:23]} Rd7 {[%emt 0:00:28]} 36. Rxd7 {[%emt 0:01:13]} Bxd7 {[%emt 0:00:01]} 37. d6 {[%emt 0:01:51]} Rd8 {[%emt 0:00:16]} 38. h6 {[%emt 0:01:07] [#]} (38. hxg6 $11 {keeps the balance.} hxg6 39. Rd3) 38... Bb5 $1 $17 {[%emt 0:01:09]} 39. Rb3 {[%emt 0:01:33]} Bc4 {[%emt 0:00:42]} 40. Rc3 {[%emt 0:01:25]} b5 {[%emt 0:00:13]} (40... Rxd6 41. Nxg6+ Rxg6 42. Rxc4) ({Black should try} 40... Bxa2 $17 41. Rc7 Be6 (41... Rxd6 42. Nc8 $17)) 41. Ra3 $1 $15 {[%emt 0:01:20]} Rxd6 {[%emt 0:00:09]} 42. Rxa7 {[%emt 0:00:08]} Be6 {[%emt 0:01:15]} (42... Re6 $5 43. Nc8 $8 g5 $15) 43. Ng8 {[%emt 0:01:17]} Bd7 {[%emt 0:00:33]} ({Weaker is} 43... Rd1+ 44. Kh2 Rd8 45. Nf6 $18) (43... Bd5 $5 44. Rc7 Bc6 $11 (44... Kxg8 45. Rc8+)) 44. Nf6 {[%emt 0:01:10]} Rxf6 {[%emt 0:00:15]} 45. Rxd7 {[%emt 0:00:02]} Ra6 {[%emt 0:00:17]} 46. Rb7 {[%emt 0:00:14]} Rxa2 {[%emt 0:00:07]} 47. Rxb5 {[%emt 0:00:07]} Ra4 {[%emt 0:00:45]} 48. Rb8+ {[%emt 0:01:52]} Ke7 {[%emt 0:00:03]} 49. Rh8 {[%emt 0:00:16]} Kf6 {[%emt 0:00:08]} 50. Rxh7 {[%emt 0:00:13]} Ra8 {[%emt 0:00:07]} 51. Rg7 {[%emt 0:00:24]} Rh8 {[%emt 0:00:25]} 52. g3 $1 {[%emt 0:00:14]} Ke7 {[%emt 0:01:04]} (52... Rxh6 $5 53. Rg8 $8 Rh5 $11) 53. h7 $1 {[%emt 0:01:28]} Kf6 {[%emt 0:00:05]} 54. Rg8 {[%emt 0:00:05]} Rxh7 {[%emt 0:00:03]} 55. Kg2 {[%emt 0:00:05]} Rh5 {[%emt 0:00:05]} 56. Ra8 {[%emt 0:00:06]} Rb5 {[%emt 0:00:05]} 57. Ra7 {[%emt 0:00:08]} Rb2 {[%emt 0:00:05]} 58. Kf3 {[%emt 0:00:07]} g5 {[%emt 0:00:04]} 59. g4 {[%emt 0:00:08]} Rb3+ {[%emt 0:00:06]} 60. Kg2 {[%emt 0:00:07]} Ke6 {[%emt 0:00:08]} 61. f3 {[%emt 0:00:22]} f6 {[%emt 0:00:07]} 62. Kg3 {[%emt 0:00:06]} Rb6 {[%emt 0:00:10]} 63. Ra3 {[%emt 0:00:07]} Rb5 {[%emt 0:00:21]} 64. f4 {[%emt 0:00:10]} Kd5 {[%emt 0:00:41]} 65. fxg5 {[%emt 0:00:33]} fxg5 {[%emt 0:00:05]} 66. Rf3 {[%emt 0:00:39]} Ke4 {[%emt 0:00:04]} 67. Rf5 {[%emt 0:00:26]} Rxf5 {[%emt 0:00:06]} 68. gxf5 {[%emt 0:00:01]} Kxf5 {[%emt 0:00:08]} 69. Kf3 {[%emt 0:00:02]} g4+ {[%emt 0:00:06]} 70. Kg3 {[%emt 0:00:01]} Kg5 {[%emt 0:00:06]} 71. Kg2 {[%emt 0:00:04]} Kf4 {[%emt 0:00:05]} 72. Kf2 {[%emt 0:00:03]} g3+ {[%emt 0:00:05]} 73. Kg2 {[%emt 0:00:03]} Kg4 {[%emt 0:00:06]} 74. Kg1 {[%emt 0:00:02]} Kf3 {[%emt 0:00:06]} 75. Kf1 {[%emt 0:00:03]} g2+ {[%emt 0:00:05]} 76. Kg1 {[%emt 0:00:02]} Kg3 {[%emt 0:10:50]} 1/2-1/2

[Event "17th Paracin Open 2024"]
[Site "Paracin"]
[Date "2024.07.04"]
[Round "2.13"]
[White "Averin, Nikolay"]
[Black "Radovanovic, Nikola"]
[Result "1-0"]
[ECO "B90"]
[WhiteElo "2250"]
[BlackElo "2441"]
[Annotator "TA"]
[PlyCount "59"]
[EventDate "2024.07.02"]
[EventType "swiss"]
[EventCountry "SRB"]
[SourceTitle "playchess.com"]
[Source "ChessBase"]
[SourceQuality "1"]
[TimeControl "5400+30"]

{[%evp 17,59,8,31,0,12,10,12,16,31,29,23,16,18,31,16,12,65,64,62,58,61,58,68,0,137,141,158,143,324,297,370,370,375,347,357,386,369,363,741,741,813,819,848,847]} 1. e4 {[%emt 0:00:00]} c5 {[%emt 0:01:18]} 2. Nf3 {[%emt 0:00:01]} d6 {[%emt 0:00:08]} 3. d4 {[%emt 0:00:01]} cxd4 {[%emt 0:00:09]} 4. Nxd4 {[%emt 0:00:01]} Nf6 {[%emt 0:00:11]} 5. Nc3 {[%emt 0:00:01]} a6 {[%emt 0:00:08]} 6. Be3 {[%emt 0:00:02]} e5 {[%emt 0:00:21]} 7. Nb3 {[%emt 0:00:03]} Be7 {[%emt 0:00:08]} 8. f3 {[%emt 0:00:13]} Be6 {[%emt 0:00:12]} 9. Qd2 {[%emt 0:00:12]} h5 {[%emt 0:00:20]} 10. a4 {[%emt 0:00:12][%cal Ba2a4,Ba4a5,Ba5b6][%mdl 32]} Nbd7 {[%emt 0:00:32][%cal Bb8d7,Bd7b6,Bb6c4][%mdl 32]} 11. Be2 {[%emt 0:00:16]} Nb6 {[%emt 0:07:37]} 12. a5 {[%emt 0:00:01] The position is equal.} Nc4 {[%emt 0:00:11]} 13. Bxc4 {[%emt 0:00:01]} Bxc4 {[%emt 1:25:45]} 14. Na4 {[%emt 1:36:26]} Nd7 {[%emt 0:00:00][%cal Of7f5]} 15. Nb6 {[%emt 0:00:00]} Nxb6 {[%emt 0:00:00]} 16. axb6 {[%emt 0:00:00]} Be6 {[%emt 0:00:00]} (16... Bh4+ $11 17. g3 Be7) 17. Na5 $14 {[%emt 0:00:00]} Qd7 {[%emt 0:00:00]} 18. O-O {[%emt 0:00:00]} O-O {[%emt 0:00:00]} 19. c4 {[%emt 0:00:00][%cal Bc2c4,Bc4c5,Bc5c6,Bc6b7][%mdl 32]} f5 {[%emt 0:00:00]} 20. Rfd1 {[%emt 0:00:00] White is much more active.} ({White should try} 20. b4 $14) 20... f4 {[%emt 0:00:00]} (20... fxe4 $11 21. fxe4 h4) 21. Bf2 $16 {[%emt 0:00:00]} Rfd8 {[%emt 0:00:00]} 22. b4 {[%emt 0:00:00]} Bf6 $2 {[%emt 0:00:00] Black cannot hold the game after this.} (22... g5 $16 {was worth a try.} 23. c5 g4) 23. c5 $18 {[%emt 0:00:00]} d5 {[%emt 0:00:00] [#]} 24. exd5 {[%emt 0:00:00]} Bxd5 {[%emt 0:00:00] [#]} 25. Qxd5+ {[%emt 0:00:00][%mdl 512]} Qxd5 {[%emt 0:00:00]} 26. Rxd5 {[%emt 0:00:00]} Rxd5 {[%emt 0:00:00]} 27. Nxb7 {[%emt 0:00:00]} Rd7 $2 {[%emt 0:00:00]} (27... Rd2 28. Rc1 e4 29. fxe4 Bb2) 28. c6 {[%emt 0:00:00] White is clearly winning.} Rxb7 {[%emt 0:00:00]} 29. cxb7 {[%emt 0:00:00]} Rb8 {[%emt 0:00:00]} 30. Rc1 {[%emt 0:00:00] Weighted Error Value: White=0.08 (flawless) /Black=0.40.  Loses game:     	---       	Black=1      Mistake:       	White=1     	Black=3      OK:         	White=6     	Black=7      Best:        	White=4     	---} 1-0

[Event "17th Paracin Open 2024"]
[Site "Paracin"]
[Date "2024.07.04"]
[Round "2.14"]
[White "Ben Ari, Yannay"]
[Black "Jiang, Qinyu"]
[Result "1-0"]
[ECO "D50"]
[WhiteElo "2443"]
[BlackElo "2246"]
[Annotator "TA"]
[PlyCount "59"]
[EventDate "2024.07.02"]
[EventType "swiss"]
[EventCountry "SRB"]
[SourceTitle "playchess.com"]
[Source "ChessBase"]
[SourceQuality "1"]
[TimeControl "5400+30"]

{[%evp 9,59,14,22,10,16,14,7,22,24,0,11,13,35,40,41,49,57,0,0,0,0,0,6,0,31,28,36,13,21,22,21,18,47,20,22,38,43,38,32,26,49,28,41,35,102,111,103,31,146,126,582,568]} 1. c4 {[%emt 0:04:49]} e6 {[%emt 0:00:00]} 2. Nc3 {[%emt 0:00:30]} d5 {[%emt 0:00:01]} 3. d4 {[%emt 0:00:19][%cal Bd2d4,Bd4d5][%mdl 32]} Nf6 {[%emt 0:00:01]} 4. Bg5 {[%emt 0:00:24]} dxc4 {[%emt 1:32:28]} 5. e3 {[%emt 0:00:08]} c5 {[%emt 0:00:00]} 6. Bxf6 {[%emt 0:00:39]} Qxf6 {[%emt 0:00:00]} 7. d5 {[%emt 0:00:05]} g6 {[%emt 0:00:00]} 8. Bxc4 {[%emt 0:03:36] The position is equal.} Bg7 {[%emt 0:00:00]} 9. Nge2 {[%emt 0:11:03]} O-O {[%emt 0:00:00]} 10. O-O {[%emt 1:13:57]} Nd7 {[%emt 0:03:00][%cal Bb8d7,Bd7b6,Bb6d5,Bd5b4][%mdl 32]} 11. dxe6 {[%emt 0:00:00]} fxe6 {[%emt 0:00:00]} 12. Nf4 {[%emt 0:00:00]} Nb6 {[%emt 0:00:00]} 13. Bb3 {[%emt 0:00:00]} ({White should try} 13. Be2 $14) 13... c4 $11 {[%emt 0:00:00]} 14. Bc2 {[%emt 0:00:00]} Rd8 {[%emt 0:00:00]} 15. Qf3 {[%emt 0:00:00]} e5 {[%emt 0:00:00]} 16. Ne4 {[%emt 0:00:00]} Qe7 {[%emt 0:00:00]} (16... Qf5 $5 17. Ne2 $8 Qxf3 18. gxf3 Nd5 $18) 17. Ne2 {[%emt 0:00:00]} Nd5 {[%emt 0:00:00]} 18. Rad1 {[%emt 0:00:00]} Rf8 {[%emt 0:00:00]} 19. Qg3 {[%emt 0:00:00]} Nb4 {[%emt 0:00:00][%csl LRa2,LRc2]} 20. Bb1 {[%emt 0:00:00]} Bf5 {[%emt 0:00:00]} 21. N2c3 {[%emt 0:00:00] Excellent horsemanship.} Rad8 {[%emt 0:00:00]} 22. Qf3 {[%emt 0:00:00]} a6 {[%emt 0:00:00][%cal Ba7a6,Ba6b5,Bb5c4][%mdl 32]} 23. Qe2 {[%emt 0:00:00]} b5 {[%emt 0:00:00]} 24. a4 {[%emt 0:00:00]} Nd3 {[%emt 0:00:00]} 25. axb5 {[%emt 0:00:00]} axb5 {[%emt 0:00:00]} 26. b3 {[%emt 0:00:00]} Qb4 {[%emt 0:00:00]} (26... b4 $1 $14 27. bxc4 bxc3 28. Bxd3 (28. Rxd3 Bxe4 29. Rxd8 Rxd8 $11) 28... Qb7) 27. bxc4 $16 bxc4 {[%emt 0:00:00] [#]} 28. Rd2 {[%emt 0:00:00]} (28. Ba2 $1 $16 Kh8 29. Rb1) 28... Bc8 {[%emt 0:00:00]} (28... Kh8 $14) 29. Ba2 {[%emt 0:00:00]} Ba6 $2 {[%emt 0:00:00][%mdl 8192]} 30. Rxd3 {[%emt 0:00:00] Weighted Error Value: White=0.09 (flawless) /Black=0.40.  Loses game:     	---       	Black=1      Mistake:       	White=2     	Black=2      Inaccurate:     	---       	Black=1      OK:         	White=14    	Black=7      Best:        	White=2     	Black=3} 1-0

[Event "17th Paracin Open 2024"]
[Site "Paracin"]
[Date "2024.07.04"]
[Round "2.15"]
[White "Yalcinkaya, Efe"]
[Black "Wang, Yanbin"]
[Result "0-1"]
[ECO "B12"]
[WhiteElo "2070"]
[BlackElo "2423"]
[Annotator "RC"]
[PlyCount "106"]
[EventDate "2024.07.02"]
[EventType "swiss"]
[EventCountry "SRB"]
[SourceTitle "playchess.com"]
[Source "ChessBase"]
[SourceQuality "1"]
[TimeControl "5400+30"]

1. e4 {[%emt 0:00:02]} c6 {[%emt 0:00:05]} 2. d4 {[%emt 0:00:03]} d5 {[%emt 0:00:04]} 3. e5 {[%emt 0:00:03]} Bf5 {[%emt 0:00:06]} 4. h4 {[%emt 0:00:02]} h5 {[%emt 0:00:35]} 5. Bd3 {[%emt 0:00:04]} Bxd3 {[%emt 0:00:03]} 6. Qxd3 {[%emt 0:00:05]} Qa5+ {[%emt 0:00:15]} 7. Nd2 {[%emt 0:00:09]} e6 {[%emt 0:00:05]} 8. Ngf3 {[%emt 0:00:15]} Nh6 {[%emt 0:00:09]} 9. O-O {[%emt 0:00:32]} Nf5 {[%emt 0:00:04]} 10. Nb3 {[%emt 0:00:45]} Qa6 {[%emt 0:00:04]} 11. Qd1 {[%emt 0:00:04]} b6 {[%emt 0:00:36]} 12. Bg5 {[%emt 0:01:03]} c5 {[%emt 0:01:06]} 13. dxc5 {[%emt 0:00:41]} bxc5 {[%emt 0:00:24]} 14. Nbd2 {[%emt 0:01:34]} Nc6 {[%emt 0:05:18]} 15. b3 {[%emt 0:05:04]} Be7 {[%emt 0:00:26]} 16. c4 {[%emt 0:05:33]} Rd8 {[%emt 0:00:54]} 17. Bxe7 {[%emt 0:05:22]} Ncxe7 {[%emt 0:00:15]} 18. Qc1 {[%emt 0:03:04]} O-O {[%emt 0:09:14]} 19. cxd5 {[%emt 0:02:56]} Rxd5 {[%emt 0:05:23]} 20. Ne4 {[%emt 0:03:27]} Ng6 {[%emt 0:00:57]} 21. Qg5 {[%emt 0:02:33]} Qd3 {[%emt 0:06:06]} 22. Rfe1 {[%emt 0:03:30]} Nd4 {[%emt 0:00:29]} 23. Nxd4 {[%emt 0:07:49]} Rxe5 {[%emt 0:01:08]} 24. Rad1 {[%emt 0:08:05]} Qxd4 {[%emt 0:03:14]} 25. Rxd4 {[%emt 0:01:32]} Rxg5 {[%emt 0:00:03]} 26. Rc4 {[%emt 0:00:41]} Re5 {[%emt 0:00:21]} 27. Rxc5 {[%emt 0:00:49]} Rxc5 {[%emt 0:00:56]} 28. Nxc5 {[%emt 0:00:06]} Rc8 {[%emt 0:00:30]} 29. Ne4 {[%emt 0:06:37]} Nxh4 {[%emt 0:00:48]} 30. Rd1 {[%emt 0:01:11]} Rc7 {[%emt 0:02:57]} 31. Rd8+ {[%emt 0:03:08]} Kh7 {[%emt 0:00:05]} 32. Nd6 {[%emt 0:02:13]} Ng6 {[%emt 0:01:49]} 33. Ra8 {[%emt 0:04:07]} Ne5 {[%emt 0:00:21]} 34. Nb5 {[%emt 0:01:34]} Rc5 {[%emt 0:00:20]} 35. a4 {[%emt 0:02:17]} Ng4 {[%emt 0:00:22]} 36. g3 {[%emt 0:00:30]} Rc1+ {[%emt 0:00:14]} 37. Kg2 {[%emt 0:00:06]} Rc2 {[%emt 0:00:02]} 38. Rxa7 {[%emt 0:00:21]} Rxf2+ {[%emt 0:00:26]} 39. Kg1 {[%emt 0:00:43]} f5 {[%emt 0:10:13]} 40. Nc7 {[%emt 0:05:42]} Rf3 {[%emt 0:06:50]} 41. Kg2 {[%emt 0:04:03]} Re3 {[%emt 0:00:15]} 42. Ne8 {[%emt 0:02:17]} Kh6 {[%emt 0:03:51]} 43. Rxg7 {[%emt 0:02:27]} e5 {[%emt 0:02:11]} 44. Rf7 {[%emt 0:07:04]} Rd3 {[%emt 0:08:53]} 45. a5 {[%emt 0:01:39]} e4 {[%emt 0:00:04]} 46. a6 {[%emt 0:00:46]} Rd2+ {[%emt 0:00:09]} 47. Kg1 {[%emt 0:01:47]} e3 {[%emt 0:16:09]} 48. a7 {[%emt 0:00:42]} Ra2 {[%emt 0:01:00]} 49. Re7 {[%emt 0:02:38]} h4 {[%emt 0:10:37]} 50. gxh4 {[%emt 0:02:11]} f4 {[%emt 0:00:33]} 51. Re4 {[%emt 0:03:28]} Rxa7 {[%emt 0:03:37]} 52. Rxf4 {[%emt 0:00:35]} e2 {[%emt 0:00:08]} 53. Re4 {[%emt 0:00:10]} Ra1+ {[%emt 0:06:16]} 0-1

[Event "17th Paracin Open 2024"]
[Site "Paracin"]
[Date "2024.07.04"]
[Round "2.16"]
[White "Sedlak, Nikola"]
[Black "Zhukov, Anton"]
[Result "1/2-1/2"]
[ECO "E97"]
[WhiteElo "2426"]
[BlackElo "2237"]
[Annotator "TA"]
[PlyCount "51"]
[EventDate "2024.07.02"]
[EventType "swiss"]
[EventCountry "SRB"]
[SourceTitle "playchess.com"]
[Source "ChessBase"]
[SourceQuality "1"]
[TimeControl "5400+30"]

{[%evp 17,51,33,37,21,27,19,34,46,31,32,68,8,11,0,14,17,39,11,28,0,0,-8,0,-37,-26,-77,-20,-15,-25,-23,-17,-30,-16,-14,-10,-13]} 1. Nf3 {[%emt 0:01:34]} Nf6 {[%emt 0:00:06]} 2. c4 {[%emt 0:00:12]} g6 {[%emt 0:01:51]} 3. Nc3 {[%emt 0:00:20]} Bg7 {[%emt 0:00:49]} 4. e4 {[%emt 0:00:07]} d6 {[%emt 0:01:41]} 5. d4 {[%emt 0:00:08]} O-O {[%emt 0:00:42]} 6. Be2 {[%emt 0:00:06]} e5 {[%emt 0:01:56]} 7. O-O {[%emt 0:03:51]} Nc6 {[%emt 0:00:50]} 8. d5 {[%emt 0:00:09]} Ne7 {[%emt 0:00:06]} 9. Kh1 {[%emt 0:00:15]} Ne8 {[%emt 0:06:38]} 10. Ng1 {[%emt 0:01:09]} f5 {[%emt 0:02:20]} 11. f4 {[%emt 0:00:08]} exf4 {[%emt 0:06:46]} 12. Bxf4 {[%emt 0:00:26] White is slightly better.} h6 {[%emt 0:00:28]} 13. exf5 {[%emt 0:04:22]} Nxf5 {[%emt 0:03:09]} 14. Bd3 {[%emt 0:03:10]} (14. h3 $14) 14... Nf6 $1 $11 {[%emt 0:05:18]} 15. g4 {[%emt 0:03:11][%cal Bg2g4,Bg4g5][%mdl 32]} Ne7 {[%emt 0:03:39][%cal Og6g5]} 16. g5 {[%emt 0:11:27]} Nh5 {[%emt 0:02:27]} 17. Bd2 {[%emt 0:02:24]} Rxf1 {[%emt 0:01:47]} (17... Nf5 {with more complications.} 18. gxh6 Be5 19. Nf3 Nhg3+) 18. Bxf1 {[%emt 0:01:39]} Nf5 {[%emt 0:01:51]} 19. Nf3 {[%emt 0:01:36]} Qf8 {[%emt 0:04:33]} 20. Bg2 {[%emt 0:05:06]} Bd7 {[%emt 0:01:36] Repels Qa4} 21. Qb3 {[%emt 0:01:54]} (21. gxh6 $11 Bxh6 22. Qc1) 21... b6 {[%emt 0:01:01]} ({Black should play} 21... Re8 $17 {Hoping for ...hxg5.} 22. Qc2 hxg5 23. Nxg5 Be5) 22. Re1 {[%emt 0:01:16]} Re8 {[%emt 0:00:22]} 23. Qd1 {[%emt 0:01:16]} hxg5 {[%emt 0:05:02]} 24. Bxg5 {[%emt 0:01:40]} Bh6 {[%emt 0:03:48]} 25. Rxe8 {[%emt 0:00:31]} Qxe8 {[%emt 0:00:31]} 26. Bxh6 {[%emt 0:01:34] Weighted Error Value: White=0.16 (very precise) /Black=0.13 (very precise) .  Mistake:       	White=2     	Black=1      Inaccurate:     	White=2     	Black=1      OK:         	White=6     	Black=6      Strong:       	---       	Black=1} 1/2-1/2

[Event "17th Paracin Open 2024"]
[Site "Paracin"]
[Date "2024.07.04"]
[Round "2.17"]
[White "Agibileg, Uurtsaikh"]
[Black "Xu, Junwei"]
[Result "0-1"]
[ECO "E41"]
[WhiteElo "2441"]
[BlackElo "2138"]
[Annotator "TA"]
[PlyCount "94"]
[EventDate "2024.07.02"]
[EventType "swiss"]
[EventCountry "SRB"]
[SourceTitle "playchess.com"]
[Source "ChessBase"]
[SourceQuality "1"]
[TimeControl "5400+30"]

{[%evp 18,94,40,40,44,25,29,30,72,27,47,29,46,35,78,55,58,24,66,18,27,16,20,16,19,0,0,4,0,-18,-8,-21,0,0,0,-11,-4,-62,0,0,16,13,16,4,8,-788,-816,-808,-797,-811,-763,-752,-770,-1477,-1767,-10447,-2589,-2242,-1096,-843,-29970,-5716,-29970,-29972,-29973,-29972,-29973,-29977,-29978,-29978,-29979,-29979,-29980,-29981,-29982,-29982,-29983,-29981,-29982]} 1. d4 {[%emt 0:00:07]} Nf6 {[%emt 0:00:04]} 2. c4 {[%emt 0:00:13]} e6 {[%emt 0:00:05]} 3. Nc3 {[%emt 0:00:14]} Bb4 {[%emt 0:00:04]} 4. e3 {[%emt 0:00:29]} O-O {[%emt 0:00:07]} 5. Bd3 {[%emt 0:00:28]} c5 {[%emt 0:00:42]} 6. Nge2 {[%emt 0:00:34]} d5 {[%emt 0:01:17]} 7. cxd5 {[%emt 0:01:20]} cxd4 {[%emt 0:03:27]} 8. exd4 {[%emt 0:01:29]} exd5 {[%emt 0:02:03]} 9. O-O {[%emt 0:01:32]} Nc6 {[%emt 0:01:33]} 10. Bg5 {[%emt 0:01:44][%cal Bc1g5,Bg5h4,Bh4g3,Bg3e5][%mdl 32]} Be6 {[%emt 0:03:10]} 11. Re1 {[%emt 0:06:15]} h6 {[%emt 0:01:50]} 12. Bh4 {[%emt 0:00:20]} Rc8 {[%emt 0:07:45] White has an edge.} 13. Rc1 {[%emt 0:02:29]} Bxc3 {[%emt 0:06:59]} 14. bxc3 {[%emt 0:05:23]} g5 {[%emt 0:01:40] Against Nf4} 15. Bg3 {[%emt 0:02:38]} Na5 {[%emt 0:02:34][%cal Bc6a5,Ba5c4,Bc4a3,Ba3b1][%mdl 32]} 16. Be5 {[%emt 0:15:07]} Nc4 {[%emt 0:23:47]} 17. Bb1 {[%emt 0:04:13]} Na3 {[%emt 0:01:37]} 18. Qd3 {[%emt 0:02:27]} (18. Ng3 $14) 18... Nxb1 $11 {[%emt 0:00:42]} 19. Rxb1 {[%emt 0:00:14]} b6 {[%emt 0:02:00]} 20. Ng3 {[%emt 0:00:22]} Ne4 {[%emt 0:01:42]} 21. Nxe4 {[%emt 0:04:27]} dxe4 {[%emt 0:00:12]} 22. Qxe4 {[%emt 0:00:27]} ({Reject} 22. Rxe4 Bf5 23. f3 Re8 $17) 22... Rxc3 {[%emt 0:03:35]} 23. Qe2 {[%emt 0:07:21][%cal Od4d5]} (23. h4 {seems wilder.} Bd5 24. Qf5 Rc6 25. Rec1) 23... Rc6 {[%emt 0:02:43]} 24. Qh5 {[%emt 0:03:37]} Bxa2 {[%emt 0:03:57]} 25. Ra1 {[%emt 0:01:23]} Qd5 {[%emt 0:00:37]} 26. Re3 {[%emt 0:04:06]} Kh7 {[%emt 0:03:46]} 27. h4 {[%emt 0:07:53]} ({White should play} 27. Qe2 $11) 27... Rg6 {[%emt 0:10:31]} (27... gxh4 $1 $15 28. Qxh4 Rg8 29. Qe4+ Qxe4 30. Rxe4 Bd5) 28. Rg3 $1 {[%emt 0:08:55]} f6 {[%emt 0:02:25]} 29. Qe2 {[%emt 0:02:01][%cal Oe2c2] Qc2! is the strong threat.} fxe5 {[%emt 0:04:11]} 30. Rxa2 {[%emt 0:00:12]} exd4 {[%emt 0:02:17] [#]} 31. Qd3 $2 {[%emt 0:05:18][%mdl 8192] This costs White the game.} Qxa2 $19 {[%emt 0:00:27]} 32. h5 {[%emt 0:00:21]} Qxf2+ {[%emt 0:00:15]} 33. Kh2 {[%emt 0:00:07] [#]} Rff6 $1 {[%emt 0:01:57][%cal Of2f4]} 34. hxg6+ {[%emt 0:01:06][%mdl 4096] Endgame. KQR-KQR} (34. Qe4 Qf4) 34... Kg7 {[%emt 0:00:05]} 35. Qa6 {[%emt 0:03:27]} Qf4 {[%emt 0:00:28] ...h5 would now be deadly.} 36. Qxa7+ {[%emt 0:00:18]} Kxg6 {[%emt 0:00:04]} 37. Qd7 {[%emt 0:00:13] Prevents Re6} h5 {[%emt 0:03:08] ( -> ...h4)} 38. Qe8+ {[%emt 0:02:43]} Kh7 {[%emt 0:00:04]} 39. Qe7+ {[%emt 0:00:10]} Rf7 {[%emt 0:00:46]} 40. Qxg5 {[%emt 0:00:18] Black mates.} Qxg5 {[%emt 0:00:03]} 41. Rxg5 {[%emt 0:00:05] [#] KR-KR} Rd7 $1 {[%emt 0:00:01]} 42. Rxh5+ {[%emt 0:00:09]} Kg6 {[%emt 0:00:03]} 43. Rb5 {[%emt 0:00:30] [#]} d3 $1 {[%emt 0:00:01]} 44. Rxb6+ {[%emt 0:01:06]} Kg5 {[%emt 0:00:05]} 45. Rb1 {[%emt 0:04:21]} d2 {[%emt 0:00:03]} 46. Rd1 {[%emt 0:00:05]} Kf4 {[%emt 0:00:01]} 47. g4 {[%emt 0:00:10]} Kf3 {[%emt 0:00:07] Weighted Error Value: White=0.60/Black=0.28 (precise) .  Loses game:     	White=1     	---        Mistake:       	White=2     	Black=1      Inaccurate:     	White=2     	Black=3      OK:         	White=7     	Black=7      Best:        	---       	Black=4      Strong:       	White=1     	---} ({Not} 47... Kxg4 48. Kg2 $11) 0-1